bitfinex-derivatives/quotes_ETHF0:USTF0_20251012
["timestamp","ask_amount","ask_price","bid_price","bid_amount"]
[1760304345359,3.2078,4121.5,4121.2,1.1969]
[1760304345567,0.43637,4121.2,4121.0,0.4923]
[1760304345756,3.35241421,4121.4,4120.5,3.685]
[1760304345757,3.35241421,4121.4,4120.5,3.2078]
[1760304345957,4.8188409,4120.6,4119.6,1.1969]
[1760304346152,3.2078,4121.0,4119.6,1.1969]
[1760304346153,3.2078,4121.0,4120.0,0.43649]
[1760304346457,3.41561559,4120.5,4120.0,0.4772]
[1760304346657,0.43644,4120.6,4120.0,1.6741]
[1760304346871,5.72905667,4120.4,4120.1,1.1969]
[1760304347056,6.58599291,4120.5,4120.2,1.1969]
[1760304347257,5.66778167,4120.3,4120.1,1.1969]
[1760304347453,5.66778167,4120.4,4120.0,0.48021713]
[1760304347665,3.2078,4120.5,4120.1,1.1969]
[1760304347666,3.11872593,4120.2,4120.1,1.1969]
[1760304347856,5.71291123,4120.2,4120.1,1.1969]
[1760304348162,3.14464404,4120.2,4120.1,1.1969]
[1760304348366,5.73882934,4120.2,4120.1,1.1969]
[1760304348670,2.5941853,4120.2,4118.5,3.685]
[1760304348859,3.2078,4119.1,4118.5,0.4772]
[1760304349057,8.0266409,4118.6,4117.8,0.02428481]
[1760304349370,1.0914,4119.5,4117.4,0.1888628]
[1760304349371,0.43674,4117.7,4117.4,0.1888628]
[1760304349667,8.0266409,4117.5,4117.4,0.00181105]
[1760304349857,8.0266409,4117.5,4115.9,1.1969]
[1760304349858,3.2078,4117.5,4115.9,1.1969]
[1760304350056,3.2078,4117.5,4115.7,3.2078]
[1760304350057,3.2078,4116.7,4116.6,1.1969]
[1760304350566,2.28361896,4116.7,4116.6,1.1969]
[1760304350770,2.88933811,4117.9,4117.6,1.1969]
[1760304350960,3.2078,4119.0,4118.1,1.1969]
[1760304351157,3.2078,4120.1,4119.5,1.6741]
[1760304351362,3.37046788,4120.1,4120.0,1.6741]
[1760304351568,3.2078,4120.6,4120.0,0.4772]
[1760304351868,0.43654,4119.7,4119.0,0.4772]
[1760304352066,0.43667,4118.4,4118.0,3.6823]
[1760304352267,3.2078,4118.3,4118.0,1.733]
[1760304352564,3.2078,4118.3,4118.0,0.4745]
[1760304352565,7.02097531,4118.3,4118.0,0.4745]
[1760304352769,0.43662,4118.8,4118.1,1.2585]
[1760304352968,8.90088309,4118.2,4118.0,0.47629113]
[1760304353163,0.4367,4118.1,4118.0,0.00179113]
[1760304353464,6.1403985,4118.1,4118.0,0.00179113]
[1760304353666,5.7036985,4118.1,4118.0,1.26029113]
[1760304353965,5.7036985,4118.1,4118.0,0.00179113]
[1760304354172,5.7036985,4118.1,4118.0,1.26029113]
[1760304354564,5.7036985,4118.1,4118.0,0.00179113]
[1760304355164,5.7036985,4118.1,4118.0,0.43850113]
[1760304355370,5.7036985,4118.1,4118.0,1.26029113]
[1760304355875,6.1403985,4118.1,4118.0,0.00179113]
[1760304356165,5.7036985,4118.1,4118.0,1.26029113]
[1760304356958,2.3969579,4118.1,4118.0,1.26029113]
[1760304357168,3.2078,4119.9,4119.4,0.43655]
[1760304357367,3.2078,4119.9,4119.2,0.43658]
[1760304357667,4.82224492,4119.4,4119.3,1.2585]
[1760304357866,3.10164147,4119.8,4119.0,0.4745]
[1760304357867,5.18261737,4119.8,4119.7,1.69503]
[1760304358167,0.00613,4120.2,4119.8,1.2585]
[1760304358470,2.55299475,4120.1,4119.9,0.43651]
[1760304358673,2.55299475,4120.1,4120.0,1.2585]
[1760304358974,0.00613,4120.2,4120.1,1.69498]
[1760304359161,0.00613,4120.2,4120.1,1.2585]
[1760304359361,3.5491954,4120.2,4120.1,1.2585]
[1760304359571,0.43089319,4120.2,4120.1,1.2585]
[1760304359981,0.00214709,4120.3,4120.2,2.16947]
[1760304360267,0.00214709,4120.3,4120.2,5.37727]
[1760304360772,5.85045601,4120.3,4120.2,1.733]
[1760304360975,5.85045601,4120.3,4120.2,4.9408]
[1760304361271,0.00214709,4120.3,4120.2,4.9408]
[1760304364676,3.2078,4122.0,4121.5,0.4745]
[1760304364975,0.43615,4123.3,4123.1,1.2585]
[1760304365174,0.43615,4123.3,4123.0,0.4745]
[1760304365175,0.43616,4123.2,4123.0,0.4745]
[1760304365370,0.43616,4123.2,4122.1,3.2078]
[1760304365371,3.17540224,4123.1,4122.1,0.43627]
[1760304365578,1.25178189,4123.1,4122.9,0.43618]
[1760304365771,1.25178189,4123.1,4122.6,0.91071]
[1760304366077,1.25178189,4123.1,4122.1,0.00277109]
[1760304366078,3.2078,4122.9,4122.1,0.00277109]
[1760304366382,3.94527028,4122.8,4122.6,0.4745]
[1760304366580,3.2078,4122.7,4122.6,0.4745]
[1760304366769,0.43626,4122.3,4122.1,0.00277109]
[1760304367081,0.43626,4122.3,4121.5,0.4745]
[1760304367082,6.62866007,4122.2,4121.5,0.4745]
[1760304367272,3.64412,4121.7,4121.5,0.4745]
[1760304367578,3.2078,4122.8,4122.6,0.4745]
[1760304367879,3.2078,4122.8,4122.7,1.2585]
[1760304368080,3.16508212,4122.9,4122.8,1.2585]
[1760304368281,3.2078,4123.3,4123.0,1.2585]
[1760304368977,1.28119409,4123.1,4123.0,1.2585]
[1760304370181,4.49328993,4123.1,4123.0,1.2585]
[1760304370578,1.28119409,4123.1,4123.0,1.2585]
[1760304371076,1.28119409,4123.1,4123.0,1.733]
[1760304371783,4.43971321,4123.1,4123.0,1.733]
[1760304373086,0.00211871,4123.1,4123.0,1.733]
[1760304373776,4.38726705,4123.1,4123.0,1.733]
[1760304374075,4.38726705,4123.1,4122.6,3.6849277]
[1760304374275,4.38726705,4123.1,4123.0,0.4745]
[1760304374873,4.38726705,4123.1,4123.0,1.733]
[1760304375082,3.10819167,4123.1,4123.0,1.733]
[1760304375382,0.00211871,4123.1,4123.0,1.733]
[1760304375580,0.00211871,4123.1,4123.0,4.9408]
[1760304376786,3.2078,4124.0,4123.5,0.4745]
[1760304377081,3.2078,4124.5,4124.1,1.2585]
[1760304377280,3.2078,4124.5,4124.4,1.69453]
[1760304377674,6.41806133,4124.5,4124.4,1.69453]
[1760304377880,6.87610722,4124.5,4124.4,1.69453]
[1760304378076,0.43609,4123.9,4123.7,0.4361]
[1760304378282,3.2078,4124.0,4123.8,0.43608]
[1760304378583,3.22163958,4123.9,4123.8,0.43608]
[1760304378885,4.00080453,4123.9,4123.8,1.2585]
[1760304381182,0.43617,4123.1,4123.0,0.4745]
[1760304381388,0.43621,4122.8,4122.6,0.0026277]
[1760304381580,8.02307292,4123.1,4122.2,0.43625]
[1760304381581,0.43622,4122.6,4122.2,0.43625]
[1760304381780,0.43628,4122.1,4121.5,0.4745]
[1760304382281,3.46284643,4122.0,4121.5,0.4745]
[1760304382685,3.16857812,4122.0,4121.9,1.65999]
[1760304382889,3.2078,4122.8,4122.7,0.43621]
[1760304383189,6.33159943,4122.8,4122.7,1.65991]
[1760304383483,3.2078,4123.3,4123.2,1.65986]
[1760304383983,3.2078,4123.3,4123.0,0.4709]
[1760304383984,4.28523028,4123.9,4123.7,1.65979]
[1760304384189,3.2078,4124.4,4124.2,0.43604]
[1760304384384,6.36695285,4124.4,4124.2,0.43604]
[1760304384583,0.54398428,4124.3,4124.0,0.90696]
[1760304384785,3.70313713,4124.3,4124.2,1.2237]
[1760304384983,3.70313713,4124.3,4124.1,0.43606]
[1760304385286,3.70313713,4124.3,4124.0,1.6946]
[1760304385483,3.70313713,4124.3,4124.1,1.2237]
[1760304385785,3.70313713,4124.3,4124.2,1.2237]
[1760304385981,0.43605,4124.2,4124.0,0.4709]
[1760304386379,0.43605,4124.2,4123.5,0.4709]
[1760304386380,3.30920204,4124.1,4123.5,0.4709]
[1760304386580,3.2078,4123.6,4123.0,0.4709]
[1760304386778,3.64392,4123.6,4123.0,0.4709]
[1760304386985,0.43615,4123.3,4123.0,1.6946]
[1760304387188,4.64218429,4123.5,4123.1,0.43616]
[1760304387389,3.40224129,4123.2,4123.1,0.43616]
[1760304387584,4.12263318,4123.4,4122.0,0.4709]
[1760304387791,0.43627,4122.2,4122.0,0.4709]
[1760304388187,3.54948849,4122.1,4122.0,0.4709]
[1760304388682,3.54948849,4122.1,4122.0,1.6946]
[1760304388983,3.2078,4122.9,4122.1,2.31439]
[1760304389177,3.2078,4122.9,4122.8,1.2237]
[1760304390388,4.60453132,4122.9,4122.8,1.2237]
[1760304390791,3.2078,4122.9,4122.8,1.2237]
[1760304390985,4.60453132,4122.9,4122.8,1.2237]
[1760304392395,7.82387383,4122.9,4121.7,3.2078]
[1760304392599,3.2078,4122.2,4122.1,1.2237]
[1760304392891,3.644,4122.8,4122.4,0.43624]
[1760304393091,3.644,4122.8,4122.1,1.2237]
[1760304393392,0.43636,4121.3,4121.1,2.13890498]
[1760304393600,0.4364,4121.0,4120.8,1.2237]
[1760304393898,3.34857319,4120.9,4120.0,1.2237]
[1760304394192,3.34857319,4120.9,4119.7,3.2078]
[1760304394193,3.2078,4120.4,4120.3,1.2237]
[1760304394393,3.21058021,4120.4,4120.3,1.22541448]
[1760304394597,6.48727651,4120.4,4120.3,1.22541448]
[1760304394804,6.48727651,4120.4,4118.4,0.4709]
[1760304394805,0.43652,4119.8,4119.1,1.2237]
[1760304395095,3.2078,4119.2,4119.1,1.2237]
[1760304395486,6.7565928,4119.2,4119.1,1.2237]
[1760304395690,6.7565928,4119.2,4119.1,0.00225181]
[1760304396100,0.43659,4119.1,4118.5,1.2237]
[1760304396300,6.7565928,4119.2,4118.5,0.43665]
[1760304396301,3.2078,4118.7,4118.5,0.43665]
[1760304396496,3.2078,4118.7,4118.6,1.2237]
[1760304396892,6.6053469,4118.7,4118.6,1.2237]
[1760304397199,6.6053469,4118.7,4118.6,1.22587294]
[1760304397589,6.6053469,4118.7,4118.6,0.00217294]
[1760304398194,0.29463201,4118.7,4118.6,1.22587294]
[1760304398696,0.78087929,4119.3,4118.7,1.2237]
[1760304399088,3.99402661,4119.3,4118.7,1.66033]
[1760304399287,3.99402661,4119.3,4119.1,1.2237]
[1760304399491,3.99402661,4119.3,4119.2,1.2237]
[1760304400300,3.99402661,4119.3,4119.0,0.4709]
[1760304400492,0.43658,4119.2,4119.0,0.4709]
[1760304400793,5.84746318,4119.1,4119.0,1.6946]
[1760304401201,0.43663,4118.8,4118.6,1.22587294]
[1760304401499,7.51636425,4118.7,4118.6,0.00217294]
[1760304401694,7.51636425,4118.7,4118.4,0.4709]
[1760304401891,7.51636425,4118.7,4118.5,1.2237]
[1760304402397,7.95300425,4118.7,4118.5,1.2237]
[1760304402596,7.51636425,4118.7,4118.5,1.2237]
[1760304402903,7.95300425,4118.7,4118.5,1.22599313]
[1760304403695,7.95300425,4118.7,4118.6,1.2251]
[1760304403902,4.38293555,4118.7,4118.6,1.2251]
[1760304407098,7.93206907,4118.7,4118.5,0.00229313]
[1760304407597,0.43668,4118.3,4118.1,1.2251]
[1760304407898,8.92239183,4118.2,4118.1,1.2251]
[1760304408101,0.4367,4118.1,4117.9,1.2251]
[1760304408495,4.799824,4118.0,4117.9,1.22738292]
[1760304408800,4.799824,4118.0,4116.9,1.09204]
[1760304408801,0.43695,4115.8,4115.0,1.7264]
[1760304409096,3.2078,4116.5,4114.5,0.5013]
[1760304409097,3.2078,4115.1,4114.5,0.5013]
[1760304409297,3.2078,4114.6,4114.5,0.5013]
[1760304409503,3.2078,4114.6,4114.5,3.67497]
[1760304409804,6.57986956,4114.6,4114.5,3.67672948]
[1760304410004,3.35731009,4114.6,4114.5,3.67672948]
[1760304410199,6.57986956,4114.6,4114.5,3.67672948]
[1760304410608,6.57986956,4114.6,4114.5,0.00175948]
[1760304410797,6.57986956,4114.6,4114.0,0.5013]
[1760304410997,3.2078,4114.2,4114.0,3.67497]
[1760304411202,3.2078,4114.2,4114.1,4.39877]
[1760304411397,3.2078,4114.2,4114.0,0.5013]
[1760304411695,3.2078,4114.2,4113.6,0.43717]
[1760304411696,9.37910384,4114.2,4113.6,1.2061]
[1760304411895,8.94199384,4114.2,4113.7,3.17367]
[1760304412299,8.94199384,4114.2,4114.1,1.2061]
[1760304412703,0.00184803,4114.6,4114.2,0.4966]
[1760304413007,0.00184803,4114.6,4114.5,1.64318]
[1760304413201,0.00184803,4114.6,4114.5,4.81685]
[1760304413408,2.55349962,4114.6,4114.5,4.81685]
[1760304413803,0.00184803,4114.6,4114.5,4.81685]
[1760304413998,13.01041918,4118.3,4114.5,4.81685]
[1760304413999,3.2078,4116.3,4114.8,0.4966]
[1760304414203,3.64469,4116.3,4115.6,0.43695]
[1760304414399,3.64469,4116.3,4115.3,4.4139]
[1760304414400,3.750186,4116.2,4116.1,1.2061]
[1760304415105,3.2691713,4116.2,4116.1,1.2061]
[1760304415402,5.83412072,4116.2,4116.1,1.2061]
[1760304416802,2.70683146,4116.2,4116.1,1.2061]
[1760304416998,2.70683146,4116.2,4116.1,1.64301]
[1760304418800,2.04755146,4116.2,4116.1,1.64301]
[1760304419000,3.2078,4117.4,4117.3,1.2061]
[1760304419307,5.8731731,4117.3,4117.2,0.4966]
[1760304419693,5.8731731,4117.3,4117.2,1.7027]
[1760304419899,5.8731731,4117.3,4117.2,1.70467008]
[1760304419900,0.00241805,4117.3,4117.2,1.70467008]
[1760304420506,3.2078,4118.0,4117.9,1.64282]
[1760304420706,3.2078,4119.3,4119.2,0.43657]
[1760304420905,3.2078,4119.3,4119.2,1.64267]
[1760304421214,3.2078,4119.3,4119.2,1.2061]
[1760304421512,3.20991202,4119.3,4119.2,1.2061]
[1760304421712,8.78324372,4119.3,4119.2,1.2061]
[1760304422210,8.78324372,4119.3,4118.4,0.4966]
[1760304422408,3.2078,4118.6,4118.4,1.7027]
[1760304422810,3.62005164,4118.5,4118.4,1.7027]
[1760304423103,0.44208324,4118.5,4118.4,1.7027]
[1760304424001,3.2078,4119.1,4119.0,0.9332]
[1760304424202,3.1973269,4119.1,4119.0,2.1393]
[1760304424508,3.2078,4120.3,4120.2,1.64257]
[1760304424705,3.2078,4120.3,4120.2,1.2061]
[1760304425405,3.21053075,4120.3,4120.2,1.20861569]
[1760304425612,7.76384858,4120.3,4118.4,3.2078]
[1760304425810,3.2078,4118.7,4117.8,3.7044]
[1760304426206,1.13348714,4120.1,4117.8,3.7044]
[1760304426207,4.38707185,4118.6,4118.5,1.2061]
[1760304426411,3.2078,4119.2,4118.8,0.4966]
[1760304426613,3.2078,4119.2,4119.1,0.43659]
[1760304426812,3.2078,4119.2,4119.1,1.64269]
[1760304427510,8.32902123,4119.2,4119.1,1.2061]
[1760304429701,8.76560123,4119.2,4118.8,0.00195971]
[1760304429901,8.32902123,4119.2,4117.8,3.7044]
[1760304430107,3.2078,4118.3,4117.8,4.9105]
[1760304430408,3.78931123,4118.2,4117.9,1.2061]
[1760304430809,3.78931123,4118.2,4117.8,0.93332]
[1760304431115,3.78931123,4118.2,4117.8,0.49935964]
[1760304431307,3.78931123,4118.2,4117.9,1.2061]
[1760304432513,3.78931123,4118.2,4118.0,1.6428]
[1760304432816,3.78931123,4118.2,4117.8,0.49935964]
[1760304432817,3.78931123,4118.2,4118.1,1.2061]
[1760304435218,3.78931123,4118.2,4117.2,0.4966]
[1760304435219,1.09175,4118.1,4117.2,0.4966]
[1760304435518,1.09175,4118.1,4116.7,0.4966]
[1760304435519,0.43682,4117.0,4116.7,0.4966]
[1760304435714,3.2078,4116.8,4116.7,0.4966]
[1760304435910,3.2078,4116.8,4116.7,1.7027]
[1760304436213,3.10460333,4117.2,4117.1,0.4368]
[1760304436414,3.2078,4117.4,4117.3,1.64288]
[1760304436611,3.20985514,4117.4,4117.3,1.64288]
[1760304436813,0.00205514,4117.4,4117.3,1.64288]
[1760304437817,3.2078,4118.9,4118.4,0.4966]
[1760304438010,3.2078,4118.9,4118.5,1.2061]
[1760304438319,5.76028868,4118.8,4118.7,1.2061]
[1760304438820,2.54444622,4118.8,4118.7,1.2061]
[1760304441916,2.54444622,4118.8,4118.5,1.1593]
[1760304441917,5.76880913,4118.8,4118.5,1.1593]
[1760304442117,5.76880913,4118.8,4118.4,0.4966]
[1760304442311,5.76880913,4118.8,4118.5,1.1593]
[1760304442511,5.76880913,4118.8,4118.4,0.4966]
[1760304443016,5.76880913,4118.8,4118.5,1.1593]
[1760304443514,5.76880913,4118.8,4118.4,0.4966]
[1760304444016,5.76880913,4118.8,4118.5,1.1593]
[1760304444222,5.76880913,4118.8,4118.4,0.4966]
[1760304444714,5.76880913,4118.8,4118.5,1.1593]
[1760304444914,5.76880913,4118.8,4118.4,0.93326]
[1760304445118,5.76880913,4118.8,4118.5,1.1593]
[1760304445811,5.76880913,4118.8,4118.4,0.93326]
[1760304446315,5.76880913,4118.8,4118.5,1.59595]
[1760304446517,5.76880913,4118.8,4118.4,0.4966]
[1760304446518,0.43665,4118.5,4118.4,0.4966]
[1760304446722,0.43664,4118.7,4118.4,0.4966]
[1760304447020,5.76880913,4118.8,4118.4,0.4966]
[1760304447021,3.19345545,4118.5,4118.4,0.4966]
[1760304447215,3.63009545,4118.6,4118.4,0.4966]
[1760304447417,3.63009545,4118.6,4117.8,1.6559]
[1760304447418,1.09172,4118.2,4117.2,0.4966]
[1760304447717,3.2078,4117.3,4116.5,1.6294]
[1760304448021,5.48816974,4117.8,4116.5,0.4701]
[1760304448022,3.2078,4116.8,4116.5,0.4701]
[1760304448209,3.2078,4116.8,4116.1,1.1593]
[1760304448414,3.2078,4116.2,4115.5,0.4701]
[1760304448716,3.2078,4115.7,4115.5,0.4701]
[1760304449118,3.55998819,4115.6,4115.5,1.63117906]
[1760304449422,0.38368821,4115.6,4115.5,1.63117906]
[1760304452116,0.00296274,4115.7,4115.5,1.63117906]
[1760304452117,0.00296274,4115.7,4115.6,1.67176]
[1760304452316,3.2078,4116.9,4116.8,0.43683]
[1760304452524,3.2078,4116.9,4116.8,1.67163]
[1760304452718,3.2078,4117.4,4117.0,0.4643]
[1760304452919,3.2078,4117.4,4117.3,1.2348]
[1760304453319,3.36122542,4117.4,4117.3,1.2348]
[1760304453517,6.48501771,4117.4,4117.3,1.2348]
[1760304453829,3.36122542,4117.4,4116.0,1.6991]
[1760304454021,3.64465,4116.7,4116.0,1.6991]
[1760304454221,3.2078,4116.6,4116.5,1.6991]
[1760304454518,3.21028362,4117.4,4117.0,1.6991]
[1760304454723,3.21028362,4117.4,4116.5,0.4643]
[1760304454915,0.43689,4116.3,4116.0,0.4643]
[1760304455223,3.2078,4116.1,4116.0,0.4643]
[1760304455416,3.2078,4116.1,4115.7,1.2348]
[1760304455417,3.64472,4116.1,4115.5,1.70667906]
[1760304455716,7.22929981,4116.1,4115.5,1.70667906]
[1760304456125,0.43693,4115.9,4115.5,0.00177906]
[1760304456326,0.43694,4115.8,4115.5,0.46607906]
[1760304456626,0.437,4115.3,4115.0,1.6991]
[1760304456816,0.43698,4115.5,4115.0,1.6991]
[1760304457017,4.36013033,4115.2,4115.1,1.2348]
[1760304457213,6.19458575,4115.5,4115.0,0.4643]
[1760304457415,3.2078,4115.6,4115.1,1.2348]
[1760304457623,4.59299451,4115.2,4115.1,1.23663273]
[1760304457822,3.2078,4115.6,4115.2,1.2348]
[1760304457823,5.67140938,4115.4,4115.2,1.2348]
[1760304458022,1.47487516,4115.2,4115.1,1.23663273]
[1760304458218,0.43703,4115.0,4114.5,1.6991]
[1760304458423,0.43706,4114.7,4114.0,1.6991]
[1760304458818,0.61428955,4114.6,4114.0,1.6991]
[1760304459027,3.36707517,4114.6,4114.0,1.6991]
[1760304459229,3.64489,4114.4,4114.0,1.70095028]
[1760304459426,3.64671941,4114.4,4114.0,0.46615028]
[1760304459627,3.20252948,4114.3,4114.0,0.46615028]
[1760304460332,0.43714,4114.0,4113.5,1.70619553]
[1760304460520,0.43714,4114.0,4112.1,3.2078]
[1760304460521,5.48816974,4113.7,4112.1,3.2078]
[1760304460720,3.2078,4111.9,4109.7,1.2348]
[1760304460929,3.2078,4110.4,4110.0,0.4643]
[1760304461328,3.57339951,4110.3,4109.5,3.6721]
[1760304461525,3.2078,4109.9,4109.5,0.16841766]
[1760304461728,0.43758,4109.8,4109.5,0.16841766]
[1760304462034,5.73500021,4109.8,4107.8,0.02434393]
[1760304462228,5.73500021,4109.8,4107.0,0.4643]
[1760304462229,3.2078,4108.3,4104.8,0.4643]
[1760304462428,1.09403,4109.6,4104.8,0.4643]
[1760304462429,3.2078,4107.6,4106.9,0.4643]
[1760304462731,10.196,4108.8,4106.2,0.4643]
[1760304462732,3.2078,4107.1,4106.2,0.4643]
[1760304463030,3.2078,4106.3,4106.2,0.4643]
[1760304463233,3.2078,4106.8,4106.4,1.2348]
[1760304463529,3.2078,4106.8,4106.7,1.91611]
[1760304463739,3.2078,4106.8,4106.3,7.97033959]
[1760304464026,2.64973831,4106.7,4106.5,1.2348]
[1760304464227,2.64973831,4106.8,4106.7,1.2348]
[1760304464435,3.2078,4106.8,4106.7,1.2348]
[1760304464627,6.31377044,4106.8,4106.7,8.21373959]
[1760304464835,9.14034546,4106.8,4106.7,1.4782]
[1760304465039,2.82657502,4106.8,4106.7,8.21373959]
[1760304465233,2.82657502,4106.8,4106.7,8.65164959]
[1760304465533,2.59369482,4107.0,4106.8,1.2348]
[1760304465731,0.00230086,4107.1,4106.3,6.73553959]
[1760304465732,3.2078,4106.9,4106.3,6.10933959]
[1760304466042,3.2078,4106.4,4106.3,6.10933959]
[1760304466531,8.93616697,4106.4,4105.2,0.24562352]
[1760304466832,3.2078,4105.3,4102.9,3.2078]
[1760304467032,3.2078,4104.1,4104.0,0.4643]
[1760304467229,5.95553044,4105.2,4104.9,0.4381]
[1760304467429,3.2078,4105.5,4104.8,0.493]
[1760304467633,3.2078,4104.9,4104.8,0.49496596]
[1760304468136,2.71882443,4104.9,4104.8,0.49496596]
[1760304468337,3.2078,4105.4,4104.8,0.49496596]
[1760304468534,2.81924832,4105.3,4105.1,0.43807]
[1760304468735,0.00186508,4105.5,4105.4,1.3179]
[1760304469732,0.00186508,4105.5,4102.7,3.2078]
[1760304469733,5.89383954,4105.5,4102.7,3.2078]
[1760304470038,5.89383954,4105.5,4096.0,4.23580236]
[1760304470039,3.2078,4100.2,4096.5,3.2078]
[1760304470226,10.21,4100.1,4096.7,1.3179]
[1760304470424,3.2078,4098.1,4096.2,6.16658146]
[1760304470631,0.3837,4100.8,4096.2,6.16658146]
[1760304470632,3.2078,4099.2,4098.0,10.97108]
[1760304470833,2.29602781,4099.2,4099.1,0.43872]
[1760304471035,0.00259825,4099.2,4098.6,3.2078]
[1760304471229,0.00259825,4099.2,4099.0,0.43873]
[1760304471230,2.63864653,4099.1,4099.0,0.43873]
[1760304471441,3.2078,4100.4,4099.2,10.96779]
[1760304471632,3.2078,4101.0,4100.0,3.2078]
[1760304471835,1.3406,4101.7,4100.8,0.43853]
[1760304472039,0.0987288,4100.9,4100.5,3.2078]
[1760304472338,0.0987288,4100.9,4091.8,2.95931591]
[1760304472339,3.2078,4100.1,4096.9,0.43895]
[1760304472641,3.2078,4099.4,4099.2,0.5499]
[1760304472831,2.40493591,4100.0,4099.3,1.4597]
[1760304473143,0.00204705,4100.1,4099.6,3.2078]
[1760304473435,3.23300957,4099.9,4099.3,1.4597]
[1760304473736,5.8070642,4099.8,4098.6,1.4597]
[1760304473936,5.8070642,4099.8,4098.7,0.43876]
[1760304474133,0.43844,4101.8,4098.4,14.17769]
[1760304474134,3.2078,4101.1,4099.7,0.43866]
[1760304474438,2.73228366,4101.0,4100.0,0.43862]
[1760304474735,3.2078,4100.1,4099.2,0.5499]
[1760304474934,3.2078,4100.6,4099.7,0.43866]
[1760304475130,0.00192536,4100.6,4099.9,0.43864]
[1760304475330,2.69789116,4100.5,4099.9,1.89834]
[1760304475526,5.90569116,4100.5,4099.6,3.2078]
[1760304475831,2.69789116,4100.5,4099.5,1.4597]
[1760304476033,0.00192536,4100.6,4100.5,1.89827]
[1760304476239,3.2078,4101.9,4100.5,1.4597]
[1760304476633,5.88877872,4101.8,4101.0,0.43851]
[1760304476830,1.3406,4103.5,4101.1,1.4597]
[1760304477025,3.2078,4103.1,4101.9,1.4597]
[1760304477230,3.2078,4102.0,4099.9,1.4597]
[1760304477427,3.2078,4101.5,4099.0,10.96837]
[1760304477635,4.3830688,4101.9,4101.8,1.89813]
[1760304477842,7.03926408,4102.9,4101.8,1.4597]
[1760304478039,0.00310403,4103.1,4101.0,12.05915]
[1760304478040,0.00310403,4103.1,4102.0,1.4597]
[1760304478233,0.00310403,4103.1,4102.9,1.89801]
[1760304478433,2.64303188,4103.0,4102.9,1.89801]
[1760304478833,2.64303188,4103.0,4102.3,3.2078]
[1760304478834,3.2078,4103.8,4103.5,0.43824]
[1760304479040,3.2078,4103.8,4103.5,1.4597]
[1760304479236,2.60413814,4103.7,4103.6,1.4597]
[1760304479441,3.2078,4103.8,4103.2,0.43828]
[1760304479739,3.2078,4103.8,4103.5,1.4597]
[1760304479938,0.00186809,4103.8,4103.7,1.4597]
[1760304480137,10.222,4106.8,4104.8,0.4381]
[1760304480138,3.2078,4105.1,4104.8,0.4381]
[1760304480333,3.2078,4105.1,4104.6,3.2078]
[1760304480534,3.2078,4105.1,4105.0,1.89779]
[1760304481045,0.00282748,4105.1,4105.0,1.46144142]
[1760304481640,3.2078,4106.7,4105.9,1.4597]
[1760304482037,2.56478532,4106.3,4105.3,4.6675]
[1760304482235,3.2078,4106.1,4105.5,1.4597]
[1760304482437,3.2078,4106.1,4105.0,0.00174142]
[1760304482438,0.29656612,4106.5,4106.0,0.43798]
[1760304482638,0.29656612,4106.5,4106.1,1.4597]
[1760304482639,0.0026843,4106.5,4106.1,1.4597]
[1760304482938,0.0026843,4106.5,4106.3,1.4597]
[1760304483447,2.53730379,4106.4,4106.3,4.6675]
[1760304483644,0.0026843,4106.5,4106.4,1.4597]
[1760304483942,2.53730379,4106.4,4105.7,3.2078]
[1760304484141,2.53998809,4106.5,4105.2,0.5499]
[1760304484142,3.2078,4106.0,4105.3,1.4597]
[1760304484341,0.43803,4105.7,4105.0,0.00174142]
[1760304484640,8.97737585,4105.9,4105.0,0.00174142]
[1760304484839,1.3406,4105.1,4105.0,0.00174142]
[1760304485234,4.81316841,4105.1,4103.8,3.2078]
[1760304485440,3.2078,4104.8,4103.8,3.2078]
[1760304485639,3.64592,4104.8,4103.8,3.2078]
[1760304485846,0.43815,4104.4,4103.3,3.64607]
[1760304486045,5.86854136,4104.7,4102.2,1.89808]
[1760304486046,3.2078,4103.4,4102.2,1.89808]
[1760304486241,0.43827,4103.3,4102.2,1.4597]
[1760304486548,5.4829697,4103.3,4102.5,3.2078]
[1760304486740,2.3224011,4103.3,4102.5,3.64615]
[1760304487142,3.20963219,4103.4,4103.1,0.43829]
[1760304487344,3.20963219,4103.4,4103.3,1.4597]
[1760304488246,0.00183219,4103.4,4103.3,4.6675]
[1760304489046,0.00183219,4103.4,4103.3,3.2078]
[1760304489248,0.00183219,4103.4,4102.7,1.4597]
[1760304489652,0.00183219,4103.4,4102.7,1.89803]
[1760304490050,3.2078,4103.0,4102.4,3.2078]
[1760304490347,2.82881313,4102.9,4102.5,0.43835]
[1760304490554,2.82881313,4102.9,4102.5,1.4597]
[1760304490752,3.2078,4103.0,4102.5,1.4597]
[1760304490953,2.82881313,4102.9,4102.5,1.89805]
[1760304491151,2.82881313,4102.9,4102.4,3.2078]
[1760304491544,2.82881313,4102.9,4102.7,0.43833]
[1760304491855,0.00183219,4103.4,4102.8,1.4597]
[1760304492046,0.00183219,4103.4,4103.2,0.43828]
[1760304492246,0.00183219,4103.4,4103.2,1.89798]
[1760304492448,0.00183219,4103.4,4103.3,1.4597]
[1760304493251,0.43802,4105.7,4103.2,0.43828]
[1760304493252,3.6459,4105.0,4104.1,0.43819]
[1760304493450,0.70151795,4104.9,4104.2,0.43817]
[1760304493761,2.80632585,4104.4,4104.3,1.89786]
[1760304494058,0.43806,4105.4,4104.3,1.89786]
[1760304494059,0.438,4105.9,4104.4,1.4597]
[1760304494354,3.2078,4105.6,4105.2,0.43806]
[1760304494556,1.15252912,4105.3,4105.2,0.44008157]
[1760304494755,2.38663105,4105.5,4105.2,1.46172157]
[1760304494962,0.08900126,4105.4,4105.2,0.44008157]
[1760304495255,4.28661995,4105.7,4105.2,0.00202157]
[1760304495458,3.19342573,4105.7,4105.4,0.43804]
[1760304495649,2.66058099,4105.6,4105.5,1.4597]
[1760304496048,2.66058099,4105.6,4105.4,0.43805]
[1760304496049,2.66058099,4105.7,4105.6,0.43803]
[1760304496250,0.0017237,4105.9,4105.7,0.43801]